bitfinex/quotes_SOLUSD_20220128
["timestamp","ask_amount","ask_price","bid_price","bid_amount"]
[1643342101327,15.58,92.54,92.4,15.58]
[1643342101529,15.58,92.54,92.38,15.58]
[1643342101530,5.65054879,92.464,92.38,15.58]
[1643342101727,18.05054879,92.464,92.341,15.8827]
[1643342101927,6.0,92.454,92.35,15.58]
[1643342102128,36.97791522,92.453,92.361,45.43665119]
[1643342102327,37.22791522,92.453,92.361,45.43665119]
[1643342102529,6.0,92.443,92.371,6.0]
[1643342102930,0.25,92.442,92.371,6.0]
[1643342103329,0.25,92.442,92.372,0.25]
[1643342103528,0.25,92.442,92.371,6.0]
[1643342104129,6.0,92.454,92.371,6.0]
[1643342104329,0.25,92.453,92.371,6.0]
[1643342105531,6.0,92.454,92.371,6.0]
[1643342105932,0.25,92.453,92.372,0.25]
[1643342107233,0.25,92.463,92.372,0.25]
[1643342107935,39.483663,92.481,92.372,0.25]
[1643342107936,0.25,92.477,92.372,0.25]
[1643342108535,6.0,92.468,92.372,0.25]
[1643342108741,1.03877292,92.467,92.372,0.25]
[1643342108938,0.25,92.467,92.372,0.25]
[1643342109139,0.25,92.477,92.372,0.25]
[1643342109539,37.64157795,92.496,92.372,0.25]
[1643342109941,32.71595738,92.477,92.372,0.25]
[1643342110642,6.0,92.467,92.372,0.25]
[1643342110841,0.25,92.466,92.362,0.25]
[1643342111144,7.80647854,92.459,92.362,0.25]
[1643342111342,0.25,92.458,92.362,0.25]
[1643342111540,12.39,92.458,92.362,0.25]
[1643342112642,12.39,92.458,92.371,114.2]
[1643342112846,12.39,92.458,92.372,0.25]
[1643342113843,0.25,92.458,92.372,0.25]
[1643342114043,6.0,92.462,92.372,0.25]
[1643342114243,30.08674694,92.472,92.372,0.25]
[1643342115244,0.25,92.471,92.372,0.25]
[1643342116166,12.59,92.471,92.37,15.58]
[1643342116375,12.59,92.471,92.361,45.43665119]
[1643342116376,6.0,92.462,92.361,45.43665119]
[1643342116574,21.58,92.46,92.361,45.43665119]
[1643342116766,0.25,92.459,92.361,45.43665119]
[1643342116967,16.2481,92.45,92.361,45.43665119]
[1643342117367,29.94383673,92.439,92.361,45.43665119]
[1643342117568,6.0,92.429,92.361,45.43665119]
[1643342117768,0.25,92.428,92.361,45.43665119]
[1643342118169,6.25,92.428,92.361,45.43665119]
[1643342121769,6.25,92.428,92.324,16.071]
[1643342121969,6.25,92.428,92.325,0.25]
[1643342122371,6.0,92.426,92.325,0.25]
[1643342122569,6.0,92.418,92.325,0.25]
[1643342122771,0.25,92.417,92.325,0.25]
[1643342122970,6.0,92.415,92.325,47.48352204]
[1643342123170,6.0,92.415,92.325,47.23352204]
[1643342123474,6.0,92.407,92.325,47.23352204]
[1643342123873,0.25,92.406,92.325,47.23352204]
[1643342125273,0.25,92.406,92.326,0.25]
[1643342126172,0.25,92.406,92.335,6.0]
[1643342130780,6.0,92.407,92.336,0.25]
[1643342132181,0.25,92.406,92.336,0.25]
[1643342132581,0.25,92.406,92.335,6.0]
[1643342132781,0.25,92.406,92.325,47.23352204]
[1643342132983,0.25,92.406,92.326,0.25]
[1643342133186,0.25,92.406,92.325,47.23352204]
[1643342133384,13.54,92.406,92.325,47.23352204]
[1643342133583,6.0,92.396,92.325,47.23352204]
[1643342133785,30.19383673,92.395,92.325,47.23352204]
[1643342134586,30.19383673,92.395,92.326,0.25]
[1643342135884,6.0,92.385,92.3,15.58]
[1643342136087,19.6,92.385,92.3,15.58]
[1643342136289,19.6,92.385,92.25,16.2565]
[1643342136290,111.40669142,92.384,92.28,15.58]
[1643342136683,6.0,92.374,92.28,15.58]
[1643342136884,10.57859919,92.372,92.281,46.4611217]
[1643342137087,6.0,92.362,92.281,46.4611217]
[1643342137287,0.25,92.361,92.282,0.25]
[1643342137487,9.38,92.362,92.291,6.0]
[1643342137688,49.0872,92.373,92.291,6.0]
[1643342137890,0.25,92.361,92.292,6.25]
[1643342138087,0.25,92.361,92.302,6.0]
[1643342138287,0.25,92.361,92.303,0.25]
[1643342138490,0.25,92.361,92.303,32.44644238]
[1643342138688,0.25,92.361,92.303,40.49695367]
[1643342138892,0.25,92.372,92.304,2.05051129]
[1643342139089,0.25,92.372,92.314,6.0]
[1643342139290,0.25,92.372,92.303,32.44644238]
[1643342139488,10.02,92.372,92.314,6.0]
[1643342139889,10.02,92.372,92.303,32.19644238]
[1643342140291,10.02,92.372,92.313,6.0]
[1643342140494,10.02,92.372,92.303,32.19644238]
[1643342141091,10.02,92.372,92.313,6.0]
[1643342141290,10.02,92.372,92.303,32.19644238]
[1643342143693,10.02,92.372,92.27,15.58]
[1643342143893,10.02,92.372,92.24,217.3654]
[1643342143894,108.2,92.361,92.271,0.25]
[1643342144096,6.0,92.351,92.271,0.25]
[1643342144294,0.25,92.35,92.271,0.25]
[1643342144494,6.0,92.349,92.271,0.25]
[1643342144697,6.0,92.341,92.271,0.25]
[1643342144894,0.25,92.34,92.251,42.10324774]
[1643342145097,6.0,92.337,92.251,42.10324774]
[1643342145297,0.25,92.336,92.251,42.10324774]
[1643342145695,2.95669142,92.335,92.251,42.10324774]
[1643342145895,28.92073677,92.328,92.251,42.10324774]
[1643342146098,6.0,92.318,92.251,42.10324774]
[1643342146298,0.25,92.317,92.251,42.10324774]
[1643342146495,6.25,92.317,92.251,42.10324774]
[1643342148396,0.25,92.317,92.261,6.0]
[1643342148598,0.25,92.317,92.262,6.0]
[1643342148798,48.5344,92.359,92.262,8.30051129]
[1643342149101,2.99695242,92.399,92.263,110.25051129]
[1643342149301,2.99695242,92.427,92.281,36.55431634]
[1643342149497,47.6809,92.432,92.291,6.0]
[1643342149498,2.99848591,92.431,92.291,6.0]
[1643342149797,91.54798165,92.438,92.292,0.25]
[1643342149999,91.54798165,92.438,92.331,108.2]
[1643342150204,91.54798165,92.438,92.341,108.2]
[1643342150398,91.54798165,92.438,92.35,15.58]
[1643342150599,91.54798165,92.438,92.36,6.0]
[1643342150800,2.99695242,92.475,92.37,15.58]
[1643342150998,150.1527,92.529,92.37,15.58]
[1643342150999,2.99695242,92.494,92.38,6.0]
[1643342151206,2.99695242,92.497,92.39,15.58]
[1643342151400,5.95364384,92.493,92.39,15.58]
[1643342151599,40.97064009,92.492,92.401,38.7330886]
[1643342151803,2.99657596,92.491,92.401,38.7330886]
[1643342152099,16.2385,92.49,92.411,6.0]
[1643342152301,2.99657596,92.489,92.411,6.0]
[1643342152700,0.25,92.488,92.411,6.0]
[1643342152901,3.20669142,92.488,92.411,6.0]
[1643342153200,2.95669142,92.487,92.411,6.0]
[1643342153399,0.25,92.486,92.411,6.0]
[1643342153799,2.95669142,92.487,92.412,0.25]
[1643342154800,16.2385,92.49,92.412,0.25]
[1643342154999,16.2385,92.49,92.402,0.25]
[1643342157008,0.25,92.489,92.401,38.7330886]
[1643342157205,6.0,92.48,92.401,38.7330886]
[1643342157436,0.25,92.479,92.401,38.7330886]
[1643342157634,8.54837179,92.478,92.401,38.7330886]
[1643342157838,0.25,92.477,92.401,38.7330886]
[1643342159434,0.25,92.477,92.402,0.25]
[1643342159837,0.25,92.477,92.401,38.7330886]
[1643342160836,0.25,92.477,92.402,0.25]
[1643342161236,6.0,92.48,92.402,0.25]
[1643342161636,32.88029322,92.479,92.402,0.25]
[1643342162038,6.0,92.469,92.402,0.25]
[1643342162639,0.25,92.468,92.402,0.25]
[1643342164242,2.95669142,92.506,92.402,0.25]
[1643342164542,16.2347,92.52,92.411,6.0]
[1643342164748,130.39699142,92.529,92.411,6.0]
[1643342164948,127.4403,92.529,92.42,6.0]
[1643342165140,127.4403,92.529,92.42,21.58]
[1643342165343,127.4403,92.529,92.422,6.0]
[1643342165550,127.4403,92.529,92.431,6.0]
[1643342165944,127.4403,92.529,92.432,0.25]
[1643342166150,6.0,92.504,92.432,0.25]
[1643342166643,0.25,92.503,92.432,0.25]
[1643342166843,0.25,92.503,92.433,0.11944914]
[1643342167247,0.25,92.503,92.432,0.25]
[1643342175351,0.25,92.503,92.433,2.05872956]
[1643342175556,0.25,92.503,92.443,6.0]
[1643342175754,6.0,92.519,92.444,0.25]
[1643342176252,6.0,92.519,92.45,6.0]
[1643342176652,23.3417,92.543,92.453,6.0]
[1643342176857,23.3417,92.543,92.454,0.25]
[1643342177056,2.99695242,92.562,92.462,108.2]
[1643342177356,111.9,92.566,92.47,15.58]
[1643342177557,111.9,92.566,92.48,6.0]
[1643342177754,1.49553586,92.54,92.481,40.17447548]
[1643342177954,1.49553586,92.543,92.481,40.17447548]
[1643342178154,2.49107172,92.564,92.491,6.0]
[1643342178355,1.49537173,92.552,92.5,15.58]
[1643342178657,48.4848,92.609,92.51,6.0]
[1643342178658,1.49537173,92.57,92.51,6.0]
[1643342178857,48.4848,92.609,92.511,0.25]
[1643342178858,1.49537173,92.563,92.511,0.25]
[1643342179156,1.49537173,92.564,92.511,43.48755274]
[1643342179456,1.49537173,92.565,92.511,37.48755274]
[1643342179655,7.149071,92.57,92.511,37.48755274]
[1643342179858,7.149071,92.57,92.511,37.23755274]
[1643342180055,1.49537173,92.559,92.511,37.23755274]
[1643342180255,0.25,92.558,92.511,37.23755274]
[1643342180864,0.25,92.558,92.49,15.58]
[1643342181057,0.25,92.558,92.44,194.76]
[1643342181058,6.0,92.551,92.44,194.76]
[1643342181260,1.49537173,92.537,92.44,15.58]
[1643342181459,1.49537173,92.534,92.44,15.58]
[1643342181861,1.49537173,92.522,92.42,15.58]
[1643342182060,1.49537173,92.52,92.441,45.00481144]
[1643342182258,0.25,92.519,92.441,45.00481144]
[1643342182659,1.74537173,92.519,92.442,0.25]
[1643342182860,0.25,92.519,92.442,0.25]
[1643342183463,6.0,92.511,92.441,45.00481144]
[1643342183885,6.0,92.511,92.414,78.27955871]
[1643342183886,1.49537173,92.504,92.414,62.22355871]
[1643342184085,6.0,92.494,92.414,62.22355871]
[1643342184389,16.2395,92.48,92.414,62.22355871]
[1643342184591,6.0,92.47,92.37,15.58]
[1643342184785,59.34757217,92.469,92.371,45.75924774]
[1643342184985,6.0,92.467,92.371,45.75924774]
[1643342185184,6.0,92.459,92.371,45.75924774]
[1643342185385,0.25,92.458,92.371,45.75924774]
[1643342185588,6.25,92.458,92.372,0.25]
[1643342185887,6.25,92.458,92.371,45.75924774]
[1643342186086,6.25,92.458,92.372,2.05395311]
[1643342186385,0.25,92.458,92.382,6.0]
[1643342186785,0.25,92.468,92.383,2.05395311]
[1643342187386,0.25,92.468,92.384,0.25]
[1643342187588,4.44982617,92.468,92.384,0.25]
[1643342187985,4.44982617,92.468,92.39,6.0]
[1643342188184,4.44982617,92.468,92.386,31.40278048]
[1643342188385,4.44982617,92.468,92.387,0.25]
[1643342188584,0.25,92.468,92.387,0.25]
[1643342188784,48.1637,92.469,92.387,0.25]
[1643342189586,40.64399484,92.468,92.387,0.25]
[1643342190386,48.1637,92.469,92.387,0.25]
[1643342190885,1.49537173,92.49,92.396,6.0]
[1643342191087,1.49537173,92.498,92.41,15.58]
[1643342191293,1.49537173,92.499,92.411,0.25]
[1643342191490,29.65999647,92.498,92.421,40.3115814]
[1643342191694,31.1553682,92.498,92.421,40.3115814]
[1643342191891,29.65999647,92.498,92.421,40.3115814]
[1643342192104,0.25,92.497,92.421,40.3115814]
[1643342192290,0.25,92.497,92.422,0.25]
[1643342192693,0.25,92.5,92.421,40.3115814]
[1643342193097,1.49537173,92.496,92.422,0.25]
[1643342193298,0.25,92.495,92.422,0.25]
[1643342194494,78.30921814,92.512,92.422,0.25]
[1643342194495,1.74537173,92.498,92.422,0.25]
[1643342194695,0.25,92.498,92.43,15.58]
[1643342194895,0.25,92.499,92.431,0.25]
[1643342195297,1.49537173,92.503,92.431,0.25]
[1643342195695,0.25,92.502,92.431,0.25]
[1643342195895,1.49537173,92.51,92.431,0.25]
[1643342196096,48.88547173,92.512,92.431,0.25]
[1643342196296,1.49537173,92.512,92.431,0.25]
[1643342196496,1.49537173,92.513,92.431,0.25]
[1643342196897,1.49537173,92.509,92.431,0.25]
[1643342197296,0.25,92.508,92.431,0.25]
[1643342197701,0.25,92.509,92.431,0.25]
[1643342197901,0.25,92.51,92.431,0.25]
[1643342199703,1.49537173,92.519,92.432,2.0621352]
[1643342199904,16.2294,92.54,92.44,6.0]
[1643342199905,1.49537173,92.529,92.44,6.0]
[1643342200108,2.99695242,92.567,92.45,15.58]
[1643342200302,2.99695242,92.574,92.451,0.25]
[1643342200504,2.99695242,92.574,92.48,194.76]
[1643342200708,2.99695242,92.592,92.49,15.58]
[1643342201002,120.3281,92.609,92.491,35.35507509]
[1643342201003,34.72976598,92.595,92.491,35.35507509]
[1643342201202,34.72976598,92.595,92.491,37.66721029]
[1643342201502,6.0,92.585,92.501,6.0]
[1643342201708,6.0,92.585,92.51,15.58]
[1643342201905,6.0,92.585,92.511,37.68691624]
[1643342202103,6.0,92.584,92.511,37.68691624]
[1643342202705,0.25,92.583,92.511,37.68691624]
[1643342203306,6.0,92.584,92.511,37.68691624]
[1643342204107,6.0,92.585,92.521,6.0]
[1643342204307,6.0,92.585,92.511,37.43691624]
[1643342204709,0.25,92.584,92.511,37.43691624]
[1643342205112,16.2232,92.58,92.511,37.43691624]
[1643342205312,9.03357753,92.579,92.511,37.43691624]
[1643342208217,8.78357753,92.579,92.512,0.25]
[1643342208816,8.78357753,92.579,92.511,37.43691624]
[1643342209717,0.25,92.578,92.511,37.43691624]
[1643342210322,0.25,92.578,92.512,0.25]
[1643342213824,0.25,92.579,92.512,0.25]
[1643342214425,16.2232,92.58,92.512,0.25]
[1643342214630,168.85450678,92.594,92.521,6.0]
[1643342214828,24.3332,92.594,92.522,0.25]
[1643342216129,0.25,92.593,92.522,0.25]
[1643342216326,24.3332,92.594,92.522,0.25]
[1643342216525,24.3332,92.594,92.53,6.0]
[1643342216726,24.3332,92.594,92.54,15.58]
[1643342217126,24.3332,92.594,92.541,0.25]
[1643342218251,0.25,92.593,92.541,0.25]
[1643342220256,0.25,92.593,92.54,15.58]
[1643342220462,0.25,92.593,92.22,4.88]
[1643342220463,6.0,92.584,92.49,15.58]
[1643342220657,6.0,92.584,92.48,15.58]
[1643342220961,3.20669142,92.583,92.48,15.58]
[1643342221156,6.0,92.582,92.48,15.58]
[1643342221356,108.2,92.572,92.481,43.53423163]
[1643342221656,30.55104331,92.561,92.481,43.53423163]
[1643342221856,0.25,92.56,92.481,43.53423163]
[1643342222056,6.0,92.551,92.46,15.58]
[1643342222255,0.25,92.55,92.46,15.58]
[1643342222456,9.20669142,92.55,92.46,15.58]
[1643342222655,6.0,92.549,92.46,15.58]
[1643342222857,22.2302,92.54,92.46,15.58]
[1643342223057,18.9623002,92.539,92.461,46.79512027]
[1643342223355,13.2123002,92.539,92.461,46.79512027]
[1643342223961,12.9623002,92.539,92.462,0.25]
[1643342225260,0.25,92.538,92.462,0.25]
[1643342226259,0.25,92.538,92.461,46.79512027]
[1643342226461,6.0,92.529,92.461,46.79512027]
[1643342226863,0.25,92.528,92.461,46.79512027]
[1643342229368,0.25,92.528,92.46,15.58]
[1643342229568,6.0,92.52,92.46,15.58]
[1643342229770,0.25,92.519,92.46,15.58]
[1643342230269,30.80104331,92.519,92.461,37.24800703]
[1643342230469,36.80104331,92.519,92.461,37.24800703]
[1643342230669,30.80104331,92.519,92.461,37.24800703]
[1643342230870,6.0,92.509,92.461,37.24800703]
[1643342231270,0.25,92.508,92.461,37.24800703]
[1643342232070,6.0,92.509,92.461,37.24800703]
[1643342232272,2.99695242,92.552,92.462,0.25]
[1643342232471,2.99695242,92.558,92.462,0.25]
[1643342232671,2.99695242,92.563,92.462,0.25]
[1643342233172,33.78443708,92.546,92.462,0.25]
[1643342233472,16.2291,92.54,92.462,0.25]
[1643342234573,16.2291,92.54,92.461,37.24800703]
[1643342234774,0.25,92.537,92.461,37.24800703]
[1643342234981,6.0,92.528,92.461,37.24800703]
[1643342235178,9.72890643,92.527,92.461,37.24800703]
[1643342235376,6.0,92.52,92.461,37.24800703]
[1643342235576,0.25,92.527,92.461,37.24800703]
[1643342236776,0.25,92.528,92.461,37.24800703]
[1643342236975,6.0,92.519,92.461,37.24800703]
[1643342237176,0.25,92.528,92.461,37.24800703]
[1643342240990,4.46909302,92.581,92.461,37.24800703]
[1643342240991,22.6175,92.57,92.471,6.0]
[1643342241291,49.0209,92.566,92.48,15.58]
[1643342241485,116.2319,92.589,92.48,15.58]
[1643342241486,2.99695242,92.58,92.48,15.58]
[1643342241684,2.99695242,92.584,92.481,40.73078466]
[1643342241885,16.222,92.58,92.49,6.0]
[1643342242084,2.99695242,92.587,92.491,6.0]
[1643342242289,0.25,92.586,92.491,0.25]
[1643342242488,2.99695242,92.589,92.491,0.25]
[1643342242687,2.99695242,92.591,92.491,0.25]
[1643342242991,2.99695242,92.595,92.491,2.3121352]
[1643342243187,2.99695242,92.596,92.491,2.3121352]
[1643342243387,10.14091494,92.594,92.491,2.3121352]
[1643342245513,6.0,92.584,92.491,2.3121352]
[1643342245713,6.0,92.584,92.501,6.0]
[1643342245914,16.2226,92.58,92.51,15.58]
[1643342246114,6.0,92.57,92.51,15.58]
[1643342246313,0.25,92.569,92.511,37.49800703]
[1643342247615,0.25,92.589,92.511,37.49800703]
[1643342247815,0.25,92.598,92.511,37.49800703]
[1643342248015,0.25,92.598,92.52,6.0]
[1643342248216,0.25,92.599,92.511,37.49800703]
[1643342248416,0.25,92.599,92.511,37.24800703]
[1643342248618,2.99695242,92.591,92.511,37.24800703]
[1643342248817,2.99695242,92.585,92.511,37.24800703]
[1643342249020,63.08805242,92.58,92.511,37.24800703]
[1643342249217,108.2,92.579,92.511,37.24800703]
[1643342249419,111.44695242,92.579,92.47,15.58]
[1643342249620,6.0,92.57,92.47,15.58]
[1643342249818,108.45,92.569,92.471,0.25]
[1643342250120,22.2268,92.56,92.471,0.25]
[1643342250318,36.90694992,92.559,92.471,35.6113151]
[1643342250518,6.0,92.55,92.471,35.6113151]
[1643342250920,0.25,92.549,92.471,35.6113151]
[1643342251919,0.25,92.549,92.472,2.06213519]
[1643342252319,6.0,92.57,92.473,0.25]
[1643342252820,35.86117956,92.569,92.48,6.0]
[1643342253020,35.86117956,92.569,92.48,15.58]
[1643342253220,35.86117956,92.569,92.481,0.25]
[1643342255321,48.2547,92.568,92.481,0.25]
[1643342255922,0.25,92.567,92.481,0.25]
[1643342256524,6.0,92.56,92.481,0.25]
[1643342256922,0.25,92.559,92.481,0.25]
[1643342262029,0.25,92.559,92.482,2.06213519]
[1643342262451,0.25,92.567,92.49,6.0]
[1643342262727,0.25,92.58,92.5,15.58]
[1643342262926,40.03329824,92.582,92.5,15.58]
[1643342262927,40.28329824,92.582,92.5,15.58]
[1643342263127,2.99695242,92.586,92.5,15.58]
[1643342263128,2.99695242,92.588,92.501,0.25]
[1643342263330,2.99695242,92.598,92.51,6.0]
[1643342263527,45.91,92.599,92.52,15.58]
[1643342263735,45.91,92.599,92.52,24.51]
[1643342263931,45.91,92.599,92.521,0.25]
[1643342264232,45.91,92.599,92.521,37.67345029]
[1643342264431,45.91,92.599,92.522,2.06213519]
[1643342264828,45.91,92.599,92.523,0.25]
[1643342265632,45.91,92.599,92.53,6.0]
[1643342265830,45.91,92.599,92.54,15.58]
[1643342266032,0.25,92.598,92.541,40.30534139]
[1643342266231,0.25,92.598,92.541,40.55534139]
[1643342273372,108.45,92.598,92.54,15.58]
[1643342273666,3.00221753,92.597,92.5,15.58]
[1643342273867,3.00221753,92.597,92.47,15.58]
[1643342273868,6.0,92.59,92.47,15.58]
[1643342274066,2.99695242,92.58,92.48,6.0]
[1643342274267,6.0,92.57,92.48,15.58]
[1643342274469,2.99695242,92.568,92.481,33.4025578]
[1643342274766,0.25,92.567,92.481,33.4025578]
[1643342274966,22.2266,92.56,92.481,33.4025578]
[1643342275466,108.45,92.559,92.481,33.4025578]
[1643342275869,35.0305395,92.549,92.481,33.4025578]
[1643342276067,6.0,92.54,92.481,33.4025578]
[1643342276267,0.25,92.539,92.481,33.4025578]
[1643342277269,108.45,92.539,92.481,33.4025578]
[1643342277667,8.48280401,92.529,92.481,33.4025578]
[1643342277867,6.0,92.53,92.481,33.4025578]
[1643342278069,2.99695242,92.57,92.481,33.4025578]
[1643342278269,2.99695242,92.587,92.49,6.0]
[1643342278470,2.99695242,92.6,92.49,21.58]
[1643342278668,2.99980026,92.594,92.491,2.32937265]
[1643342278872,2.99980026,92.594,92.491,21.53704065]
[1643342279069,42.53967074,92.593,92.492,2.07937265]
[1643342279369,42.53967074,92.593,92.493,0.25]
[1643342279370,3.24980026,92.592,92.493,0.25]
[1643342279571,6.0,92.59,92.493,0.25]
[1643342279769,0.25,92.589,92.493,2.32937265]
[1643342279968,0.25,92.589,92.5,6.0]
[1643342280169,0.25,92.589,92.51,15.58]
[1643342280370,42.53967074,92.593,92.511,0.25]
[1643342280572,42.53967074,92.593,92.52,6.0]
[1643342280770,16.2186,92.6,92.521,33.6525578]
[1643342281472,16.2186,92.6,92.521,45.49011655]
[1643342281672,33.05114488,92.599,92.521,45.49011655]
[1643342281873,33.30114488,92.599,92.521,45.49011655]
[1643342282571,33.30114488,92.599,92.521,43.1525578]
[1643342282771,33.30114488,92.599,92.521,33.4025578]
[1643342283574,33.30114488,92.599,92.53,6.0]
[1643342284374,2.95669142,92.598,92.53,6.0]
[1643342284774,0.25,92.597,92.53,6.0]
[1643342284971,6.0,92.59,92.53,6.0]
[1643342285371,0.25,92.589,92.53,6.0]
[1643342285572,33.05114488,92.599,92.53,6.0]
[1643342285772,33.05114488,92.599,92.531,2.33755875]
[1643342285975,33.05114488,92.599,92.531,0.25]
[1643342286172,33.05114488,92.599,92.54,6.0]
[1643342286374,33.05114488,92.599,92.541,42.51409869]
[1643342286776,0.25,92.598,92.55,6.0]
[1643342287580,16.2167,92.61,92.55,6.0]
[1643342287776,0.25,92.598,92.551,0.25]
[1643342287977,23.2241,92.622,92.55,6.0]
[1643342288178,0.25,92.621,92.55,6.0]
[1643342288480,23.2241,92.622,92.55,6.0]
[1643342288679,6.0,92.62,92.55,6.0]
[1643342288879,6.0,92.62,92.551,0.25]
[1643342289080,2.99695242,92.632,92.551,0.25]
[1643342289280,2.99695242,92.638,92.56,15.58]
[1643342289480,2.99695242,92.647,92.56,26.07]
[1643342289681,5.99445288,92.648,92.561,0.25]
[1643342289882,5.99445288,92.648,92.56,26.07]
[1643342289883,6.0,92.64,92.56,15.58]
[1643342290083,2.99750046,92.639,92.471,4.88]
[1643342290279,2.99695242,92.625,92.52,15.58]
[1643342290488,2.99695242,92.618,92.51,15.58]
[1643342290681,16.219,92.61,92.51,15.58]
[1643342291081,30.93561595,92.609,92.511,47.46425647]
[1643342291282,31.18561595,92.609,92.512,0.25]
[1643342291481,2.99695242,92.634,92.52,6.0]
[1643342291681,2.99695242,92.638,92.53,15.58]
[1643342291881,0.25,92.633,92.531,0.25]
[1643342292083,16.2133,92.63,92.531,0.25]
[1643342292283,0.25,92.629,92.54,6.0]
[1643342292485,2.99728272,92.628,92.541,37.97793643]
[1643342292684,0.25,92.629,92.541,38.22793643]
[1643342292883,2.99729314,92.628,92.541,38.22793643]
[1643342293283,0.25,92.627,92.541,38.22793643]
[1643342294085,2.99708007,92.626,92.541,38.22793643]
[1643342294285,24.8625,92.625,92.541,38.22793643]
[1643342294686,2.99708007,92.624,92.541,38.22793643]
[1643342294886,0.25,92.623,92.541,38.22793643]
[1643342295088,2.99708007,92.622,92.541,38.22793643]
[1643342295287,6.0,92.62,92.541,38.22793643]
[1643342295487,2.99708007,92.619,92.541,38.22793643]
[1643342295686,3.24708007,92.619,92.541,38.22793643]
[1643342295887,0.25,92.619,92.541,38.22793643]
[1643342297389,6.18222767,92.617,92.541,38.22793643]
[1643342297788,0.25,92.616,92.541,38.22793643]
[1643342298688,0.25,92.616,92.55,6.0]
[1643342299391,0.25,92.616,92.541,38.22793643]
[1643342300392,0.25,92.618,92.541,38.22793643]
[1643342300593,0.25,92.618,92.541,48.63793643]
[1643342300793,22.5372,92.619,92.541,48.63793643]
[1643342300993,22.5372,92.619,92.55,6.0]
[1643342301393,22.5372,92.619,92.551,0.25]
[1643342302295,0.25,92.618,92.551,0.25]
[1643342304696,22.5372,92.619,92.551,0.25]
[1643342305298,16.2123,92.64,92.551,11.03]
[1643342305495,2.99695242,92.65,92.56,6.0]
[1643342305697,47.5882,92.659,92.56,21.58]
[1643342305698,2.99695242,92.654,92.56,21.58]
[1643342305897,2.99695242,92.655,92.561,2.33274765]
[1643342306098,2.99695242,92.653,92.57,6.0]
[1643342306398,24.53710975,92.652,92.571,38.97874278]
[1643342306597,24.78710975,92.652,92.572,6.0]
[1643342306799,24.78710975,92.652,92.581,6.0]
[1643342306997,2.99857889,92.651,92.581,6.0]
[1643342307198,2.99857889,92.651,92.582,0.25]
[1643342307407,0.25,92.65,92.582,0.25]
[1643342307999,0.25,92.65,92.581,6.0]
[1643342308000,3.0014441,92.649,92.581,6.0]
[1643342308200,3.0014441,92.649,92.582,0.25]
[1643342308404,0.25,92.648,92.582,0.25]
[1643342308801,3.0014441,92.647,92.582,0.25]
[1643342309301,0.25,92.646,92.582,0.25]
[1643342309902,3.00164866,92.645,92.582,0.25]
[1643342310305,0.25,92.644,92.582,0.25]
[1643342310701,0.25,92.644,92.589,0.679327]
[1643342310902,0.25,92.644,92.59,46.71345012]
[1643342311424,3.24695242,92.652,92.591,0.25]
[1643342311627,3.24695242,92.652,92.59,46.71345012]
[1643342311825,32.04528221,92.65,92.59,46.71345012]